bitfinex/quotes_SOLUSD_20240717
["timestamp","ask_amount","ask_price","bid_price","bid_amount"]
[1721234288425,0.7978,156.26,156.23,10.0]
[1721234288637,0.7978,156.26,156.24,6.4405]
[1721234288800,0.7978,156.26,156.25,11.27966715]
[1721234289001,0.7978,156.26,156.25,45.17]
[1721234289209,0.7978,156.26,156.25,51.74]
[1721234289434,0.7978,156.26,156.25,46.27955079]
[1721234289614,0.7978,156.26,156.25,46.27962919]
[1721234289816,0.7978,156.26,156.25,45.0]
[1721234290135,0.7978,156.26,156.25,46.27964512]
[1721234290310,0.7978,156.26,156.25,45.34]
[1721234290643,0.7978,156.26,156.25,61.74]
[1721234290938,0.7978,156.26,156.25,63.01947987]
[1721234291105,0.7978,156.26,156.25,51.74]
[1721234291308,0.7978,156.26,156.25,45.0]
[1721234292126,0.7978,156.26,156.2,48.8221]
[1721234292127,7.1976,156.26,156.2,48.8221]
[1721234292319,0.7978,156.26,156.2,48.8221]
[1721234292521,0.7978,156.26,156.21,6.4016]
[1721234292724,7.1975,156.26,156.2,22.4068]
[1721234293035,7.1975,156.26,156.2,6.402]
[1721234293036,20.0,156.25,156.2,6.402]
[1721234293250,20.0,156.25,156.21,6.4015]
[1721234293433,7.1974,156.26,156.21,6.4015]
[1721234293434,0.7978,156.26,156.21,6.4015]
[1721234293736,0.7978,156.26,156.21,22.405]
[1721234293943,20.7978,156.26,156.21,16.0035]
[1721234294145,0.7978,156.26,156.21,16.0035]
[1721234294448,20.7978,156.26,156.23,6.4007]
[1721234294617,20.7978,156.26,156.24,45.0]
[1721234295246,0.7978,156.26,156.24,51.3676]
[1721234295431,0.7978,156.26,156.25,7.67963067]
[1721234295749,0.7978,156.26,156.25,52.67963067]
[1721234296255,0.7978,156.26,156.25,45.0]
[1721234296629,6.4005,156.24,156.19,6.1335]
[1721234296828,0.7978,156.26,156.21,6.4013]
[1721234297038,0.7978,156.26,156.22,10.0]
[1721234297439,0.7978,156.26,156.25,6.4]
[1721234297752,0.7978,156.26,156.25,7.6795731]
[1721234297924,0.7978,156.26,156.25,53.0195731]
[1721234298125,0.7978,156.26,156.25,75.37250647]
[1721234299525,0.7978,156.26,156.25,74.0931]
[1721234300628,0.7978,156.26,156.25,28.9231]
[1721234300831,0.7978,156.26,156.25,22.5231]
[1721234301338,0.7978,156.26,156.25,28.9231]
[1721234302154,0.7978,156.26,156.25,73.9231]
[1721234302329,0.7978,156.26,156.25,74.0931]
[1721234303538,0.7978,156.26,156.25,67.5231]
[1721234303859,0.7978,156.26,156.25,6.2898]
[1721234304157,0.7978,156.26,156.25,13.79944305]
[1721234304336,0.7978,156.26,156.25,12.5198]
[1721234305096,0.7978,156.26,156.25,57.6898]
[1721234305643,0.7978,156.26,156.25,57.8598]
[1721234306261,0.7978,156.26,156.25,59.13913986]
[1721234306478,0.7978,156.26,156.25,77.8598]
[1721234306847,6.1854,156.41,156.32,6.3969]
[1721234307051,6.1854,156.41,156.33,45.0]
[1721234307253,6.3951,156.37,156.33,45.0]
[1721234307576,6.3951,156.37,156.32,45.0]
[1721234307943,6.3955,156.36,156.32,45.0]
[1721234308768,6.3951,156.37,156.32,45.0]
[1721234309273,6.1854,156.41,156.32,51.397]
[1721234309959,6.3946,156.38,156.32,51.397]
[1721234310160,6.3946,156.38,156.33,0.34]
[1721234310367,6.3939,156.4,156.34,6.3962]
[1721234310544,6.3943,156.39,156.35,45.0]
[1721234310744,0.7978739,156.42,156.35,45.0]
[1721234310971,31.56,156.4,156.28,22.8163]
[1721234311173,6.3976,156.31,156.25,6.2166]
[1721234311381,6.3974,156.32,156.26,1.27956057]
[1721234311559,15.9893,156.36,156.25,6.2166]
[1721234311761,6.3971,156.33,156.27,6.3988]
[1721234311971,6.3966,156.34,156.27,6.3987]
[1721234312275,26.3962,156.35,156.29,6.3982]
[1721234312593,26.3959,156.35,156.3,6.3978]
[1721234312875,20.0,156.35,156.3,6.3978]
[1721234313052,22.9588,156.39,156.3,15.9942]
[1721234313255,6.3954,156.37,156.31,6.3974]
[1721234313475,22.9588,156.39,156.32,45.0]
[1721234313679,38.9445,156.39,156.31,45.0]
[1721234313873,6.3961,156.35,156.31,45.0]
[1721234314070,22.9588,156.39,156.32,1.27925072]
[1721234314260,22.9588,156.39,156.31,45.0]
[1721234314462,20.0,156.38,156.31,45.0]
[1721234314661,20.0,156.38,156.32,1.27930716]
[1721234314963,6.3957,156.36,156.31,45.0]
[1721234315378,6.3952,156.37,156.31,51.3974]
[1721234315581,20.0,156.36,156.31,51.3974]
[1721234315761,20.0,156.36,156.31,45.0]
[1721234316168,20.0,156.38,156.29,6.3982]
[1721234316378,51.56,156.38,156.27,15.9974]
[1721234316689,6.3972,156.32,156.27,6.3991]
[1721234316869,6.3976,156.31,156.25,12.6161]
[1721234317066,6.398,156.3,156.24,31.5138]
[1721234317285,6.3976,156.31,156.25,6.3999]
[1721234317495,6.3973,156.32,156.26,6.3992]
[1721234317680,20.0,156.31,156.26,6.3992]
[1721234317987,6.3973,156.32,156.26,6.3992]
[1721234318165,20.0,156.31,156.27,15.9978]
[1721234318364,20.0,156.31,156.28,6.3987]
[1721234318766,26.3967,156.33,156.27,22.3968]
[1721234318969,20.0,156.33,156.28,51.3986]
[1721234319277,20.0,156.33,156.29,6.3982]
[1721234319461,6.3963,156.34,156.3,45.0]
[1721234319666,6.3958,156.36,156.28,45.0]
[1721234319863,6.3951,156.37,156.31,6.3975]
[1721234320096,6.3951,156.37,156.32,45.0]
[1721234320286,6.3947,156.38,156.32,51.3967]
[1721234320489,16.3598,156.39,156.32,60.9921]
[1721234320790,6.395,156.38,156.32,67.3891]
[1721234320966,16.3598,156.39,156.32,60.9921]
[1721234321173,31.56,156.41,156.34,15.9903]
[1721234321469,31.56,156.41,156.35,45.0]
[1721234322491,6.3942,156.39,156.35,45.0]
[1721234322692,20.0,156.38,156.35,45.0]
[1721234323368,20.0,156.39,156.35,45.0]
[1721234323572,20.0,156.4,156.35,45.0]
[1721234323889,20.0,156.4,156.35,51.3957]
[1721234324087,26.3938,156.4,156.35,45.0]
[1721234324291,20.0,156.4,156.35,45.0]
[1721234324474,6.3943,156.39,156.35,45.0]
[1721234324794,20.0,156.38,156.35,45.0]
[1721234324995,20.0,156.38,156.35,51.3958]
[1721234325170,6.3938,156.4,156.35,45.0]
[1721234325378,20.0,156.39,156.35,51.3958]
[1721234325684,20.0,156.39,156.35,45.0]
[1721234326004,20.0,156.39,156.35,51.3958]
[1721234326208,20.0,156.4,156.35,51.3958]
[1721234326376,6.3935,156.41,156.36,1.27879234]
[1721234326716,6.3935,156.41,156.35,51.3958]
[1721234327698,20.0,156.4,156.35,51.3958]
[1721234327905,20.0,156.4,156.35,45.0]
[1721234327906,26.3941,156.4,156.35,45.0]
[1721234328395,0.7978739,156.42,156.36,7.67413438]
[1721234328701,20.7978739,156.42,156.37,45.0]
[1721234329086,20.7978739,156.42,156.36,45.0]
[1721234329484,6.3939,156.4,156.36,45.0]
[1721234329687,6.3935,156.41,156.36,45.0]
[1721234329889,20.0,156.4,156.36,45.0]
[1721234330283,20.0,156.4,156.37,1.27882109]
[1721234330483,6.3936,156.41,156.37,45.0]
[1721234330687,20.0,156.4,156.37,45.0]
[1721234331178,26.3939,156.4,156.37,45.0]
[1721234331374,26.3939,156.4,156.36,45.0]
[1721234332199,6.3943,156.39,156.36,45.0]
[1721234332391,6.3943,156.39,156.35,45.0]
[1721234332600,26.3939,156.4,156.35,45.0]
[1721234333607,26.3939,156.4,156.35,51.3958]
[1721234333915,20.0,156.4,156.36,15.9886]
[1721234334119,6.3939,156.4,156.37,45.0]
[1721234334276,6.3939,156.4,156.36,1.2788257]
[1721234334611,0.7978739,156.42,156.37,0.17]
[1721234334794,0.7978739,156.42,156.39,6.3941]
[1721234334981,0.7978739,156.42,156.34,6.4682]
[1721234335313,6.3939,156.4,156.34,28.8548]
[1721234335696,0.7978739,156.42,156.34,22.4586]
[1721234335893,0.7978739,156.42,156.34,28.8549]
[1721234336202,0.7978739,156.42,156.34,6.4682]
[1721234336419,0.7978739,156.42,156.35,1.27889964]
[1721234336609,0.7978739,156.42,156.36,1.27889787]
[1721234336799,0.7978739,156.42,156.34,6.4682]
[1721234336800,0.7978739,156.42,156.35,6.3958]
[1721234337120,0.7978739,156.42,156.34,6.4682]
[1721234337296,7.1909739,156.42,156.36,6.3954]
[1721234337492,20.0,156.41,156.37,51.3947]
[1721234337710,20.0,156.41,156.37,45.0]
[1721234338826,26.3935,156.41,156.37,45.0]
[1721234338999,6.3938,156.4,156.37,45.0]
[1721234340001,20.0,156.41,156.37,45.0]
[1721234340207,0.7978739,156.42,156.36,45.0]
[1721234340497,6.3938,156.41,156.36,45.0]
[1721234340692,20.0,156.4,156.36,45.0]
[1721234340895,0.7978739,156.42,156.36,45.0]
[1721234341091,0.7978739,156.42,156.36,46.27879493]
[1721234341624,0.7978739,156.42,156.39,6.3938]
[1721234341932,0.2978739,156.42,156.4,45.0]
[1721234342300,0.2978739,156.42,156.34,6.4682]
[1721234342814,6.396,156.35,156.31,16.3771]
[1721234342995,6.3955,156.36,156.31,16.3771]
[1721234343200,6.3947,156.38,156.33,6.3966]
[1721234343394,6.3947,156.38,156.34,1.27909037]
[1721234343732,6.3943,156.39,156.34,1.27909037]
[1721234343910,20.0,156.38,156.31,16.3771]
[1721234344104,6.3975,156.32,156.27,15.683]
[1721234344301,6.3967,156.33,156.27,15.683]
[1721234344806,20.0,156.32,156.26,6.3993]
[1721234345213,6.3982,156.3,156.25,6.564]
[1721234345532,20.0,156.32,156.25,6.564]
[1721234345707,20.0,156.35,156.26,6.3995]
[1721234346418,51.56,156.35,156.25,6.564]
[1721234346626,0.17,156.34,156.25,6.564]
[1721234346808,6.3974,156.32,156.25,6.564]
[1721234347007,6.3974,156.32,156.25,12.9636]
[1721234347531,6.3974,156.32,156.26,6.3995]
[1721234347928,6.3967,156.33,156.27,6.399]
[1721234348130,20.0,156.32,156.25,6.564]
[1721234348425,57.9562,156.35,156.28,22.3945]
[1721234348603,20.0,156.35,156.29,6.3979]
[1721234348803,20.0,156.35,156.3,6.3976]
[1721234349000,20.0,156.36,156.3,6.3976]
[1721234349309,6.3955,156.36,156.31,45.0]
[1721234349931,31.56,156.38,156.28,15.9962]
[1721234350228,6.3968,156.33,156.27,6.399]
[1721234350431,31.56,156.38,156.28,45.0]
[1721234350604,20.17,156.37,156.28,45.0]
[1721234351033,6.397,156.33,156.28,45.0]
[1721234351412,20.0,156.32,156.26,6.3994]
[1721234351611,20.0,156.32,156.25,6.564]
[1721234351922,31.56,156.32,156.23,15.6871]
[1721234352109,6.3987,156.29,156.22,22.4037]
[1721234352440,26.3988,156.28,156.22,22.4036]
[1721234352641,6.3992,156.27,156.22,16.0028]
[1721234352932,6.4,156.25,156.19,22.9877]
[1721234353121,20.0,156.28,156.17,6.2074]
[1721234353122,6.4014,156.22,156.17,6.2074]
[1721234353327,6.4005,156.24,156.18,6.4028]
[1721234353529,20.0,156.23,156.18,6.4028]
[1721234353923,20.0,156.23,156.18,6.4027]
[1721234354342,20.0,156.23,156.16,16.0086]
[1721234354529,6.4015,156.22,156.16,22.4121]
[1721234354723,20.0,156.23,156.17,6.4029]
[1721234354928,26.4004,156.24,156.18,6.4027]
[1721234355444,6.4008,156.23,156.17,6.4032]
[1721234355628,20.0,156.22,156.17,6.4032]
[1721234355824,20.0,156.22,156.17,16.0075]
[1721234356024,20.0,156.22,156.18,45.0]
[1721234356245,20.0,156.22,156.18,6.4027]
[1721234356442,20.0,156.24,156.18,6.4027]
[1721234356621,26.4005,156.24,156.18,6.4027]
[1721234356825,20.0,156.24,156.19,1.28040276]
[1721234357022,20.0,156.24,156.19,7.68240276]
[1721234357421,26.4004,156.24,156.18,51.4027]
[1721234358232,20.0,156.24,156.19,6.4022]
[1721234358449,26.4,156.25,156.19,6.4022]
[1721234358858,6.4004,156.24,156.18,51.4027]
[1721234359048,20.0,156.23,156.18,45.0]
[1721234359350,6.4013,156.22,156.17,22.4107]
[1721234359646,51.56,156.25,156.13,6.2074]
[1721234359647,6.4016,156.21,156.14,16.0108]
[1721234360226,6.4021,156.2,156.14,22.4152]
[1721234360822,31.56,156.22,156.13,12.6122]
[1721234361028,6.4028,156.19,156.13,12.6122]
[1721234361227,20.17,156.21,156.11,37.6737]
[1721234361228,6.4035,156.17,156.11,37.6737]
[1721234361456,20.0,156.16,156.11,22.4191]
[1721234361955,20.0,156.16,156.09,6.2483]
[1721234362156,6.4041,156.15,156.09,12.6548]
[1721234362354,20.0,156.14,156.08,22.4237]
[1721234362550,6.4048,156.14,156.08,22.4237]
[1721234362752,31.56,156.16,156.06,6.4075]
[1721234362982,6.4056,156.12,156.06,6.4075]
[1721234363276,26.4059,156.11,156.05,28.7781]
[1721234363951,20.0,156.11,156.05,22.3701]
[1721234364151,20.0,156.12,156.07,6.407]
[1721234364363,26.4053,156.12,156.06,6.4076]
[1721234364787,20.0,156.12,156.07,6.4073]
[1721234364953,26.4053,156.12,156.06,6.4077]
[1721234365162,20.0,156.12,156.05,22.3701]
[1721234365469,20.0,156.15,156.05,22.3701]
[1721234365676,46.8582,156.13,156.03,0.5]
[1721234365886,31.56,156.1,156.03,0.5]
[1721234366059,6.407,156.08,156.03,0.5]
[1721234366565,6.4066,156.09,156.03,6.9089]
[1721234366785,20.0,156.08,156.03,0.5]
[1721234367092,20.0,156.08,156.03,6.9089]
[1721234367466,26.4069,156.08,156.03,6.9089]
[1721234367682,6.4069,156.08,156.03,0.5]
[1721234368189,6.4069,156.08,156.03,6.909]
[1721234368359,6.4066,156.09,156.03,6.909]
[1721234368565,20.0,156.08,156.03,6.909]
[1721234368768,26.4071,156.08,156.03,0.5]
[1721234368987,20.0,156.08,156.03,6.9088]
[1721234369169,26.4066,156.09,156.03,6.9088]
[1721234370076,20.0,156.09,156.03,0.5]
[1721234370262,6.4077,156.06,156.03,0.5]
[1721234370464,20.0,156.05,156.03,0.5]
[1721234371069,20.0,156.06,156.03,0.5]
[1721234371470,20.0,156.07,156.03,0.5]
[1721234371871,20.0,156.07,156.03,8.19056321]
[1721234372086,20.0,156.08,156.03,0.5]
[1721234372288,20.0,156.09,156.03,0.5]
[1721234372602,6.4077,156.06,156.03,0.5]
[1721234372772,20.0,156.05,156.03,0.5]
[1721234373095,26.4083,156.05,156.03,0.5]
[1721234373305,47.5758,156.1,156.03,0.5]
[1721234373470,6.4078,156.06,156.03,0.5]
[1721234373804,6.4075,156.07,156.03,0.5]
[1721234373991,31.56,156.1,156.03,6.9088]
[1721234374368,6.4066,156.09,156.04,6.4085]
[1721234374582,62.8712,156.13,156.05,7.68939154]
[1721234374801,6.4054,156.12,156.05,1.28149154]
[1721234374977,6.4057,156.11,156.06,6.4074]
[1721234375579,6.4056,156.12,156.06,22.4267]
[1721234375888,6.4058,156.11,156.06,16.0191]
[1721234376086,6.4052,156.13,156.06,22.4265]
[1721234376288,6.4056,156.12,156.07,46.2812283]
[1721234376482,47.5693,156.16,156.06,22.1558]
[1721234376675,6.407,156.08,156.06,6.1367]
[1721234376877,6.4066,156.09,156.06,6.1367]
[1721234377706,6.4062,156.1,156.06,6.1367]
[1721234377873,20.0,156.09,156.06,6.1367]
[1721234378488,26.4066,156.09,156.06,6.1367]
[1721234378688,20.0,156.09,156.03,16.6572]
[1721234378888,31.56,156.1,156.03,0.5]
[1721234379187,6.4083,156.05,156.03,0.5]
[1721234379776,64.1731,156.1,156.03,0.5]
[1721234379777,26.4086,156.04,156.03,0.5]
[1721234381994,57.9686,156.04,156.03,0.5]
[1721234384001,6.4086,156.04,156.03,0.5]
[1721234384219,16.02,156.06,156.03,0.5]
[1721234384220,6.4083,156.05,156.03,0.5]
[1721234384395,6.4086,156.04,156.03,0.5]
[1721234384589,6.4082,156.05,156.03,0.5]
[1721234384893,6.408,156.06,156.03,0.5]
[1721234385093,6.4079,156.06,156.03,0.5]
[1721234385812,6.4082,156.05,156.03,0.5]
[1721234386519,20.0,156.04,156.03,0.5]
[1721234386683,6.4078,156.06,156.03,0.5]
[1721234386887,64.1729,156.1,156.03,0.5]
[1721234387109,6.407,156.08,156.03,1.78162972]
[1721234387283,6.4066,156.09,156.03,6.9089]
[1721234387479,6.4066,156.09,156.04,46.28153564]
[1721234387698,6.4062,156.1,156.05,1.28143878]
[1721234387900,6.4065,156.09,156.05,1.28143878]
[1721234388305,6.4071,156.08,156.04,45.0]
[1721234388613,6.4071,156.08,156.03,51.909]
[1721234388789,6.407,156.08,156.03,51.909]
[1721234388987,6.4066,156.09,156.03,45.5]
[1721234389207,6.4065,156.09,156.04,0.17]
[1721234389621,6.4062,156.1,156.04,6.5784]
[1721234389911,20.0,156.09,156.05,51.4081]
[1721234390115,20.0,156.09,156.05,6.4081]
[1721234390408,20.0,156.09,156.06,45.0]
[1721234390798,26.4062,156.1,156.06,45.0]
[1721234390995,6.4069,156.08,156.05,45.0]
[1721234391304,20.0,156.1,156.03,0.5]
[1721234391505,6.4072,156.08,156.03,61.5216]
[1721234391691,6.4072,156.08,156.04,1.28145288]
[1721234391892,6.4072,156.08,156.03,67.9305]
[1721234392087,6.4072,156.08,156.04,1.28146115]
[1721234392284,6.4066,156.09,156.05,1.28146149]
[1721234392513,6.4069,156.08,156.04,1.28146149]
[1721234392731,6.4066,156.09,156.05,1.28144018]
[1721234392920,26.4062,156.1,156.05,1.28144018]
[1721234393095,26.4062,156.1,156.05,46.28144018]
[1721234393296,20.0,156.1,156.05,51.4081]
[1721234393512,20.0,156.1,156.06,1.28130294]
[1721234393513,26.4061,156.1,156.06,1.28130294]
[1721234393707,20.0,156.1,156.03,16.5216]
[1721234393922,20.0,156.12,156.03,0.5]
[1721234394216,6.4086,156.04,156.03,0.5]
[1721234394588,26.4086,156.04,156.03,0.5]
[1721234395518,57.9686,156.04,156.03,0.5]
[1721234396296,58.1386,156.04,156.03,0.5]
[1721234397429,103.1386,156.04,156.03,0.5]
[1721234398726,6.4122,155.96,155.92,6.149]
[1721234398930,26.4123,155.95,155.92,6.149]
[1721234399141,20.0,155.95,155.92,6.149]
[1721234399533,20.0,155.96,155.92,6.149]
[1721234399740,31.56,156.0,155.92,6.149]
[1721234399741,6.4115,155.97,155.92,6.149]
[1721234400045,20.0,155.96,155.92,6.149]
[1721234400340,6.4124,155.95,155.92,6.149]
[1721234400530,26.4119,155.96,155.92,6.149]
[1721234400734,20.0,155.96,155.92,6.149]
[1721234401239,6.4126,155.95,155.92,6.149]
[1721234401424,26.4128,155.94,155.9,15.352]
[1721234401627,6.4132,155.93,155.9,15.352]
[1721234402244,20.0,155.96,155.88,12.5928]
[1721234402245,6.4136,155.92,155.88,6.1777]
[1721234402445,31.56,155.94,155.88,6.1777]
[1721234402765,47.5927,155.94,155.87,0.7978739]
[1721234403053,6.4144,155.9,155.87,0.7978739]
[1721234403269,16.0343,155.92,155.87,0.7978739]
[1721234403548,6.4144,155.9,155.87,0.7978739]
[1721234403933,6.414,155.91,155.87,0.7978739]
[1721234404133,26.4144,155.9,155.87,0.7978739]
[1721234404338,6.4149,155.89,155.87,0.7978739]
[1721234404533,20.0,155.88,155.87,0.7978739]
[1721234404937,26.4151,155.88,155.87,0.7978739]
[1721234405147,58.1451,155.88,155.87,0.7978739]
[1721234405749,57.9751,155.88,155.87,0.7978739]
[1721234405960,58.1451,155.88,155.87,0.7978739]
[1721234406155,57.9751,155.88,155.87,0.7978739]
[1721234408053,26.4151,155.88,155.87,0.7978739]
[1721234409158,6.4151,155.88,155.87,0.7978739]
[1721234409657,6.4149,155.89,155.87,0.7978739]
[1721234410757,6.4151,155.88,155.87,0.7978739]
[1721234411150,6.4149,155.89,155.87,0.7978739]
[1721234411359,20.0,155.88,155.87,0.7978739]
[1721234411541,26.4151,155.88,155.87,0.7978739]
[1721234414564,58.1451,155.88,155.87,0.7978739]
[1721234415063,103.1451,155.88,155.87,0.7978739]
[1721234415560,19.27,155.84,155.72,7.1587739]
[1721234415768,6.4194,155.78,155.72,13.5802739]
[1721234416064,31.56,155.8,155.72,0.7978739]
[1721234416065,6.4205,155.75,155.72,0.7978739]
[1721234416437,20.0,155.74,155.72,0.7978739]
[1721234417235,26.4212,155.74,155.72,0.7978739]
[1721234417439,6.4213,155.73,155.72,0.7978739]
[1721234417859,20.0,155.73,155.72,0.7978739]
[1721234419136,6.4193,155.78,155.72,7.2195739]
[1721234419367,20.0,155.77,155.72,7.2195739]
[1721234419864,6.419,155.79,155.73,6.4213]
[1721234420057,20.17,155.78,155.72,0.7978739]
[1721234420245,6.4211,155.74,155.72,0.7978739]
[1721234420451,20.0,155.73,155.72,0.7978739]
[1721234420853,20.0,155.73,155.68,6.3609]
[1721234421051,26.4208,155.75,155.68,6.3609]
[1721234421251,20.0,155.75,155.68,6.3609]
[1721234421561,6.4202,155.76,155.69,45.0]
[1721234421892,26.4205,155.75,155.69,45.0]
[1721234422252,26.4205,155.75,155.69,51.4228]
[1721234422673,26.4205,155.75,155.7,6.4225]
[1721234422981,20.0,155.75,155.71,51.4221]
[1721234423183,26.4201,155.76,155.71,45.0]
[1721234423686,26.4201,155.76,155.71,51.4221]
[1721234423852,26.4202,155.76,155.71,51.422]
[1721234424290,20.0,155.76,155.72,16.0536]
[1721234424578,20.0,155.77,155.73,45.0]
[1721234424782,6.4204,155.76,155.69,22.4797]
[1721234424999,6.421,155.74,155.7,45.0]
[1721234425159,6.4222,155.71,155.68,6.3609]
[1721234425560,6.4219,155.72,155.68,6.3609]
[1721234425868,6.4219,155.72,155.68,7.64536405]
[1721234426061,6.4212,155.74,155.68,14.06856405]
[1721234426263,6.4212,155.74,155.69,6.4228]
[1721234426571,6.4212,155.74,155.68,28.8424]
[1721234426885,6.4214,155.73,155.69,45.0]
[1721234427177,6.4213,155.73,155.69,45.0]
[1721234427897,20.0,155.77,155.68,6.3609]
[1721234428056,16.0496,155.77,155.68,6.3609]
[1721234428259,20.0,155.76,155.68,6.3609]
[1721234428566,6.4218,155.72,155.68,6.3609]
[1721234429092,6.4224,155.71,155.68,6.3609]
[1721234429273,16.0518,155.75,155.66,16.0901]
[1721234429587,35.68,155.69,155.64,1.2762395]
[1721234429757,6.4239,155.67,155.64,1.2762395]
[1721234429961,20.0,155.66,155.64,1.2762395]
[1721234430187,26.4234,155.68,155.64,1.2762395]
[1721234430364,20.0,155.68,155.64,7.7012395]
[1721234430684,20.0,155.72,155.64,1.2762395]
[1721234430896,35.85,155.74,155.64,1.2762395]
[1721234430897,6.4232,155.69,155.64,1.2762395]
[1721234431064,6.424,155.67,155.64,1.2762395]
[1721234431479,6.4234,155.69,155.64,1.2762395]
[1721234431684,20.0,155.73,155.65,1.28477415]
[1721234431987,6.4228,155.7,155.64,17.3383395]
[1721234432283,20.0,155.69,155.64,1.2762395]
[1721234432473,20.0,155.69,155.64,7.7012395]
[1721234432894,20.0,155.69,155.65,17.34574159]
[1721234433190,20.17,155.74,155.64,1.2762395]
[1721234433368,6.4229,155.7,155.64,1.2762395]
[1721234433576,20.0,155.69,155.64,1.2762395]
[1721234433770,64.0938,155.8,155.65,1.28471721]
[1721234433971,64.0938,155.8,155.65,46.28471721]
[1721234434283,6.4205,155.76,155.7,6.4225]
[1721234434458,32.0009,155.8,155.71,6.422]
[1721234434663,6.4196,155.78,155.72,6.4216]
[1721234434965,6.4197,155.77,155.71,7.70638337]
[1721234435670,6.4193,155.79,155.72,6.4216]
[1721234435871,6.5085,155.88,155.74,15.6643]
[1721234436071,6.5085,155.88,155.75,46.6237023]
[1721234436379,6.5085,155.88,155.77,16.0486]
[1721234436563,6.4173,155.83,155.77,16.0486]
[1721234436763,6.4167,155.85,155.77,16.0486]
[1721234436992,6.4164,155.85,155.79,22.4653]
[1721234437865,68.018,155.9,155.8,7.7019167]
[1721234438081,6.4163,155.86,155.8,7.7019167]
[1721234438482,6.4164,155.85,155.8,1.2836167]
[1721234438772,20.0,155.84,155.8,7.7020167]
[1721234439602,20.0,155.84,155.8,1.2836167]
[1721234439971,20.0,155.84,155.8,46.2836167]
[1721234440194,26.416,155.86,155.81,6.418]
[1721234440372,20.0,155.86,155.81,6.4179]
[1721234440570,20.0,155.86,155.82,6.4175]
[1721234440894,20.0,155.86,155.81,6.4179]
[1721234441210,20.0,155.86,155.81,6.418]
[1721234441490,6.4165,155.85,155.8,1.28341063]
[1721234441668,20.0,155.86,155.8,46.28346926]
[1721234441871,6.4164,155.85,155.8,46.28346926]
[1721234442388,6.4164,155.85,155.8,52.70186926]
[1721234442697,6.4164,155.85,155.8,46.28346926]
[1721234442895,6.4169,155.84,155.8,46.28346926]
[1721234443207,6.4173,155.83,155.79,6.0331]
[1721234443366,6.4183,155.81,155.79,6.0331]
[1721234443562,16.0408,155.86,155.79,6.0331]
[1721234443789,36.0373,155.89,155.79,6.0331]
[1721234443981,6.4165,155.85,155.79,12.4519]
[1721234444194,20.0,155.84,155.8,6.4183]
[1721234444363,20.0,155.84,155.82,6.4176]
[1721234444564,20.0,155.84,155.8,16.0457]
[1721234444767,26.4169,155.84,155.79,6.0331]
[1721234444966,26.4169,155.84,155.8,45.0]
[1721234445184,20.0,155.84,155.8,45.0]
[1721234445392,20.0,155.84,155.8,51.4184]
[1721234445898,6.4151,155.89,155.81,1.28344439]
[1721234446069,6.4144,155.9,155.84,6.4168]
[1721234446270,6.4148,155.89,155.83,6.4171]
[1721234446492,6.4148,155.89,155.84,45.0]
[1721234446694,31.66,155.93,155.85,16.0406]